bitfinex-derivatives/quotes_SOLF0:USTF0_20241016
["timestamp","ask_amount","ask_price","bid_price","bid_amount"]
[1729094716024,5.18,155.6,155.56,18.72412558]
[1729094716523,3.2142,155.59,155.56,18.72412558]
[1729094717412,3.2142,155.59,155.56,21.93872558]
[1729094718927,3.2138,155.6,155.56,21.93872558]
[1729094719126,5.18,155.61,155.56,18.72412558]
[1729094719628,3.214,155.59,155.56,18.72412558]
[1729094719826,3.214,155.59,155.56,21.93872558]
[1729094721124,3.2139,155.6,155.56,21.93872558]
[1729094721531,5.18,155.61,155.57,3.2144]
[1729094721827,5.18,155.61,155.56,18.72412558]
[1729094722129,5.18,155.61,155.57,3.2143]
[1729094722324,3.2138,155.6,155.57,3.2143]
[1729094723030,5.18,155.61,155.56,3.29412558]
[1729094723231,5.18,155.61,155.54,15.43]
[1729094723530,5.18,155.61,155.53,3.2151]
[1729094724227,3.2146,155.57,155.53,3.2151]
[1729094724930,3.2146,155.57,155.54,3.215]
[1729094725131,5.18,155.61,155.52,15.43]
[1729094726128,3.2145,155.57,155.54,3.2149]
[1729094726826,3.2139,155.6,155.57,3.2142]
[1729094727134,3.2139,155.6,155.57,6.50028878]
[1729094727830,3.214,155.59,155.57,6.50028878]
[1729094729533,3.214,155.59,155.57,3.28608878]
[1729094729727,3.214,155.59,155.56,18.6445]
[1729094730329,3.214,155.59,155.56,21.91216619]
[1729094730535,18.1723,155.66,155.56,18.69766619]
[1729094730832,5.18,155.65,155.56,18.69766619]
[1729094731030,5.18,155.65,155.57,1.3944]
[1729094731329,3.2137,155.61,155.58,3.2141]
[1729094731724,5.18,155.62,155.57,1.3944]
[1729094731932,5.18,155.62,155.58,15.43]
[1729094732231,2.7423,155.66,155.58,15.43]
[1729094732427,5.18,155.65,155.61,18.6434]
[1729094733436,3.2131,155.64,155.61,18.6434]
[1729094733932,3.2132,155.63,155.61,15.43]
[1729094734735,3.2132,155.63,155.6,3.2137]
[1729094734936,5.18,155.65,155.57,19.4666]
[1729094735640,3.2135,155.62,155.59,3.214]
[1729094736335,3.2136,155.61,155.59,3.214]
[1729094737837,5.18,155.65,155.57,16.8244]
[1729094738037,5.18,155.65,155.57,1.3944]
[1729094738232,6.5754,155.65,155.57,1.3944]
[1729094738730,3.2141,155.59,155.57,1.3944]
[1729094740840,5.18,155.61,155.56,3.26766619]
[1729094741040,3.2148,155.56,155.53,3.2152]
[1729094741241,5.18,155.57,155.49,23.2471]
[1729094741431,5.18,155.56,155.49,18.0671]
[1729094742041,3.2155,155.52,155.5,3.2158]
[1729094743039,3.2159,155.5,155.49,1.3194]
[1729094743242,5.18,155.52,155.47,6.50263372]
[1729094743439,5.18,155.52,155.47,3.28623372]
[1729094743743,3.2163,155.48,155.45,15.43]
[1729094744140,3.2163,155.48,155.45,18.7248786]
[1729094744549,3.2163,155.48,155.45,21.9416786]
[1729094748237,5.18,155.52,155.45,21.9416786]
[1729094748443,3.2165,155.47,155.45,18.7248786]
[1729094749256,3.2165,155.47,155.45,3.2948786]
[1729094749550,15.43,155.51,155.42,3.2173]
[1729094749743,16.7908,155.51,155.42,3.2173]
[1729094749940,3.2171,155.44,155.42,3.23427425]
[1729094750145,5.18,155.48,155.41,15.43]
[1729094750538,5.18,155.48,155.44,3.217]
[1729094750742,5.18,155.48,155.43,15.43]
[1729094751055,5.18,155.48,155.43,18.68453872]
[1729094751251,5.18,155.48,155.45,3.2168]
[1729094751252,8.3964,155.48,155.45,3.2168]
[1729094751850,5.18,155.5,155.45,15.43]
[1729094752055,5.18,155.51,155.47,15.43]
[1729094752256,5.18,155.52,155.47,15.43]
[1729094752554,5.18,155.53,155.47,18.70104246]
[1729094752945,3.2159,155.5,155.47,21.91754246]
[1729094753169,5.18,155.53,155.47,3.27104246]
[1729094753346,5.18,155.53,155.46,1.3209]
[1729094753550,3.2159,155.5,155.47,3.2163]
[1729094753853,5.18,155.53,155.46,4.57521407]
[1729094754056,5.18,155.53,155.46,1.3209]
[1729094754553,5.18,155.53,155.46,4.47435398]
[1729094754744,3.216,155.5,155.46,7.69085398]
[1729094756255,3.216,155.5,155.46,4.47435398]
[1729094756458,3.216,155.5,155.47,3.2165]
[1729094759057,16.7908,155.56,155.47,15.43]
[1729094759254,5.18,155.55,155.47,15.43]
[1729094759651,3.2157,155.51,155.47,15.43]
[1729094760156,5.18,155.55,155.47,15.43]
[1729094760353,3.2156,155.52,155.47,15.43]
[1729094760960,5.18,155.55,155.46,4.47435398]
[1729094761161,15.43,155.53,155.46,4.47435398]
[1729094761551,3.2164,155.48,155.46,4.47435398]
[1729094761748,5.18,155.51,155.46,4.47435398]
[1729094762058,3.2165,155.47,155.46,3.15345398]
[1729094762253,3.2165,155.47,155.44,3.217]
[1729094762452,3.2165,155.47,155.41,15.43]
[1729094762663,3.2165,155.47,155.41,18.65818425]
[1729094763259,3.2165,155.47,155.44,3.217]
[1729094763957,3.2168,155.46,155.43,3.2172]
[1729094764259,20.61,155.5,155.41,3.22818425]
[1729094764463,3.2171,155.45,155.42,3.2174]
[1729094764767,5.18,155.46,155.42,3.18075825]
[1729094765062,20.61,155.46,155.4,1.3097]
[1729094765258,20.61,155.46,155.41,3.2457439]
[1729094765456,20.61,155.46,155.36,15.43]
[1729094765649,20.61,155.46,155.33,2.7105]
[1729094765650,15.43,155.44,155.34,16.7853]
[1729094765855,15.43,155.42,155.34,16.7853]
[1729094766055,5.18,155.41,155.34,16.7853]
[1729094766261,5.18,155.41,155.35,3.2188]
[1729094766463,5.18,155.41,155.34,1.3553]
[1729094766953,15.43,155.4,155.34,1.3553]
[1729094767154,3.2189,155.36,155.31,3.14936087]
[1729094767460,5.18,155.37,155.3,15.43]
[1729094767662,3.2191,155.35,155.31,3.2196]
[1729094767856,3.2191,155.35,155.31,6.45283174]
[1729094768060,3.2191,155.35,155.31,3.2196]
[1729094768362,3.2191,155.35,155.32,3.2195]
[1729094769061,3.2188,155.36,155.32,15.43]
[1729094769256,5.18,155.37,155.32,15.43]
[1729094770562,3.219,155.35,155.32,18.6495]
[1729094771164,3.219,155.35,155.32,3.2195]
[1729094771865,5.18,155.37,155.3,18.62846581]
[1729094772050,3.219,155.35,155.31,3.2197]
[1729094772962,5.18,155.37,155.3,18.62846581]
[1729094773162,15.43,155.36,155.3,3.19846581]
[1729094773460,15.43,155.36,155.29,1.3553]
[1729094773665,3.2198,155.32,155.29,1.3553]
[1729094773858,3.2198,155.32,155.29,4.64539072]
[1729094774662,3.2198,155.32,155.29,7.86559072]
[1729094774860,3.2198,155.32,155.29,4.64539072]
[1729094776966,8.3995,155.33,155.29,4.64539072]
[1729094778260,8.3995,155.33,155.29,7.86559072]
[1729094778767,5.18,155.33,155.29,3.29009072]
[1729094778974,3.2196,155.32,155.28,3.2204]
[1729094779273,3.2196,155.32,155.28,6.47689149]
[1729094779570,3.2196,155.32,155.28,3.2204]
[1729094780064,3.2196,155.32,155.28,6.42955596]
[1729094780869,5.18,155.33,155.28,3.20915596]
[1729094781067,5.18,155.33,155.25,1.4324]
[1729094781664,3.2202,155.3,155.26,3.2207]
[1729094782369,3.2203,155.29,155.26,3.2207]
[1729094782867,3.2201,155.3,155.26,3.2207]
[1729094786468,15.43,155.38,155.28,15.43]
[1729094786672,72.2156,155.39,155.3,15.43]
[1729094786868,5.18,155.38,155.3,15.43]
[1729094787067,3.2196,155.33,155.3,18.6499]
[1729094787572,5.18,155.38,155.3,15.43]
[1729094788076,3.2196,155.33,155.3,15.43]
[1729094788372,3.2196,155.33,155.29,18.65]
[1729094789174,5.18,155.34,155.27,15.43]
[1729094789380,5.18,155.33,155.25,4.71454167]
[1729094790068,5.18,155.33,155.26,3.2207]
[1729094790771,3.2202,155.3,155.26,3.2207]
[1729094791274,3.2203,155.29,155.26,3.2207]
[1729094791471,5.18,155.33,155.25,4.71454167]
[1729094791669,15.43,155.32,155.25,4.71454167]
[1729094792571,3.2207,155.27,155.25,4.71454167]
[1729094794567,5.18,155.29,155.25,4.71454167]
[1729094794568,3.2208,155.26,155.25,4.71454167]
[1729094794769,3.2208,155.26,155.25,3.28214167]
[1729094794971,3.2208,155.26,155.23,4.6084]
[1729094795477,3.2208,155.26,155.23,7.82558372]
[1729094795671,5.18,155.29,155.23,7.82558372]
[1729094795672,3.2213,155.24,155.23,3.21718372]
[1729094795980,3.2213,155.24,155.21,1.3132]
[1729094796175,3.2213,155.24,155.21,4.535]
[1729094796378,3.2217,155.22,155.21,1.3132]
[1729094796677,3.2217,155.22,155.18,2.7521]
[1729094797171,5.18,155.25,155.18,2.7521]
[1729094797172,5.18,155.25,155.19,15.43]
[1729094797374,5.18,155.25,155.18,2.7521]
[1729094797375,5.18,155.25,155.2,15.43]
[1729094797674,8.4012,155.25,155.2,15.43]
[1729094797881,5.18,155.25,155.2,15.43]
[1729094798081,3.2213,155.24,155.22,3.2215]
[1729094798580,3.2213,155.24,155.2,15.43]
[1729094798581,3.2214,155.24,155.21,3.2218]
[1729094800885,5.18,155.25,155.2,15.43]
[1729094801183,5.18,155.29,155.23,15.43]
[1729094801380,5.18,155.29,155.24,4.6301]
[1729094801575,3.2209,155.26,155.24,1.4089]
[1729094802181,3.2209,155.26,155.24,4.6301]
[1729094802382,3.2209,155.26,155.24,1.4089]
[1729094802975,3.2213,155.24,155.23,3.27331228]
[1729094803176,20.61,155.29,155.19,16.8806]
[1729094803688,20.61,155.29,155.21,3.2219]
[1729094804386,20.61,155.29,155.19,16.8806]
[1729094805383,3.2214,155.24,155.21,3.2218]
[1729094807179,6.4392,155.33,155.29,3.2201]
[1729094807180,3.2195,155.33,155.29,3.2201]
[1729094807378,5.18,155.37,155.3,15.43]
[1729094807784,3.2194,155.33,155.3,15.43]
[1729094808292,3.2194,155.33,155.31,3.24861757]
[1729094808887,3.2194,155.33,155.3,15.43]
[1729094809485,5.18,155.37,155.3,18.57829599]
[1729094809889,3.2197,155.32,155.3,15.43]
[1729094810594,3.2195,155.33,155.29,6.399631]
[1729094810793,5.18,155.37,155.29,3.179531]
[1729094812289,15.43,155.36,155.26,19.4571]
[1729094812495,15.43,155.36,155.27,3.2206]
[1729094812797,15.43,155.36,155.28,3.29963432]
[1729094812991,3.2205,155.28,155.26,1.3307]
[1729094813199,5.18,155.31,155.26,3.25583244]
[1729094813500,3.221,155.26,155.22,3.2215]
[1729094814188,3.2214,155.24,155.21,1.3872]
[1729094814394,5.18,155.27,155.21,1.3872]
[1729094814690,3.2215,155.23,155.21,1.3872]
[1729094814890,3.2215,155.23,155.2,3.2219]
[1729094817791,3.2215,155.23,155.18,16.7643]
[1729094817997,3.2215,155.23,155.19,3.2222]
[1729094818590,3.2218,155.22,155.18,4.5567]
[1729094818787,15.43,155.26,155.18,1.3343]
[1729094819186,15.43,155.24,155.18,1.3343]
[1729094819396,3.2222,155.2,155.18,1.3343]
[1729094821496,5.18,155.23,155.15,3.14502929]
[1729094821698,5.18,155.23,155.15,3.2231]
[1729094821699,15.43,155.21,155.15,3.2231]
[1729094821894,15.43,155.21,155.15,3.17900206]
[1729094822093,3.2225,155.19,155.15,3.223]
[1729094822295,3.2225,155.19,155.15,6.50553483]
[1729094822494,15.43,155.21,155.15,3.223]
[1729094822693,3.2225,155.18,155.14,3.2232]
[1729094823496,3.2227,155.17,155.14,3.2232]
[1729094824198,15.43,155.21,155.14,15.43]
[1729094824399,5.18,155.23,155.14,15.43]
[1729094824902,3.2225,155.19,155.15,3.223]
[1729094825719,3.2225,155.19,155.16,3.2229]
[1729094825900,3.2221,155.21,155.15,15.43]
[1729094826200,5.18,155.23,155.15,15.43]
[1729094826402,3.222,155.21,155.15,15.43]
[1729094826996,3.222,155.21,155.18,3.2224]
[1729094829323,3.2222,155.2,155.17,3.2227]
[1729094829902,3.2225,155.18,155.16,3.2229]
[1729094830104,3.2225,155.18,155.13,15.43]
[1729094830607,3.2225,155.18,155.15,3.223]
[1729094830806,20.63,155.23,155.13,15.43]
[1729094831109,3.2224,155.19,155.16,3.2228]
[1729094831303,20.63,155.23,155.13,15.43]
[1729094831509,15.43,155.21,155.12,7.30092947]
[1729094832005,3.2234,155.14,155.12,5.94912947]
[1729094832202,20.63,155.18,155.12,4.58402947]
[1729094832407,5.2,155.18,155.12,4.58402947]
[1729094832812,5.2,155.18,155.12,7.80772947]
[1729094833313,3.2233,155.15,155.12,7.80772947]
[1729094834007,3.2235,155.14,155.12,4.58402947]
[1729094834804,5.2,155.18,155.12,4.58402947]
[1729094835316,3.2235,155.13,155.12,4.58402947]
[1729094836010,3.2233,155.14,155.12,7.80762947]
[1729094836523,5.2,155.18,155.12,4.58402947]
[1729094836811,3.2235,155.14,155.12,4.58402947]
[1729094837606,3.2234,155.14,155.12,7.80772947]
[1729094837803,3.2234,155.14,155.12,4.58402947]
[1729094839108,5.2,155.18,155.12,7.80772947]
[1729094839305,15.43,155.23,155.14,15.43]
[1729094839512,5.2,155.22,155.15,3.223]
[1729094839708,3.2222,155.2,155.14,15.43]
[1729094839909,5.2,155.21,155.16,15.43]
[1729094840111,5.2,155.22,155.16,15.43]
[1729094840313,8.4218,155.22,155.16,15.43]
[1729094840711,8.4218,155.22,155.19,3.2221]
[1729094840911,3.2219,155.21,155.18,15.43]
[1729094841228,5.2,155.22,155.17,4.6315]
[1729094841715,5.2,155.22,155.18,3.2225]
[1729094842309,5.2,155.22,155.17,1.4088]
[1729094842509,1.3652,155.26,155.17,1.4088]
[1729094842717,3.2214,155.24,155.18,15.43]
[1729094843015,1.3652,155.26,155.18,15.43]
[1729094843210,5.2,155.25,155.2,15.43]
[1729094843407,5.2,155.25,155.2,18.63542219]
[1729094843603,5.2,155.25,155.2,3.20542219]
[1729094843604,3.2214,155.24,155.2,3.20542219]
[1729094843823,3.2214,155.24,155.19,1.4512]
[1729094844109,3.2215,155.23,155.2,3.2219]
[1729094844304,3.2215,155.23,155.2,6.52238598]
[1729094845318,5.2,155.25,155.2,3.30048598]
[1729094845522,5.2,155.25,155.19,1.4512]
[1729094846025,8.4212,155.25,155.22,3.2215]
[1729094846317,8.4212,155.25,155.22,6.37798105]
[1729094846818,3.2213,155.24,155.22,6.37798105]
[1729094847519,3.2213,155.24,155.22,3.15648105]
[1729094847731,5.2,155.25,155.21,3.2218]
[1729094848015,3.2215,155.23,155.21,3.2218]
[1729094848219,3.2215,155.23,155.21,6.47311044]
[1729094848425,8.4212,155.25,155.22,3.2217]
[1729094848922,5.2,155.25,155.22,3.2217]
[1729094849119,3.2214,155.24,155.23,3.16239232]
[1729094849315,20.63,155.25,155.14,15.43]
[1729094849514,15.43,155.23,155.14,16.809]
[1729094849712,1.4289,155.24,155.15,3.2231]
[1729094849913,15.43,155.23,155.14,16.809]
[1729094850114,3.2223,155.2,155.17,3.2226]
[1729094850326,1.4289,155.24,155.16,15.43]
[1729094851417,1.4289,155.24,155.14,16.809]
[1729094851617,3.2222,155.2,155.14,16.809]
[1729094851812,1.4289,155.24,155.14,16.809]
[1729094852014,3.2219,155.21,155.17,3.2225]
[1729094852320,20.63,155.25,155.14,16.809]
[1729094852517,20.63,155.25,155.16,15.43]
[1729094852922,3.222,155.21,155.18,3.2225]
[1729094853319,20.63,155.25,155.16,15.43]
[1729094854141,3.2222,155.2,155.17,3.2226]
[1729094854422,1.3817,155.27,155.14,1.379]
[1729094854423,20.67,155.21,155.14,1.379]
[1729094854618,5.24,155.2,155.12,3.23612947]
[1729094854921,15.43,155.19,155.1,15.43]
[1729094855523,16.8276,155.19,155.1,18.69524465]
[1729094855822,1.3976,155.19,155.12,3.2237]
[1729094856027,5.24,155.2,155.12,15.43]
[1729094856328,3.223,155.16,155.13,4.5459]
[1729094858224,3.2232,155.15,155.13,1.3225]
[1729094858421,15.43,155.19,155.13,1.3225]
[1729094859126,3.2232,155.15,155.13,1.3225]
[1729094859329,5.24,155.16,155.13,1.3225]
[1729094859629,5.24,155.16,155.1,3.26524465]
[1729094859818,3.2235,155.14,155.1,3.224]
[1729094860021,5.24,155.16,155.1,6.45624358]
[1729094860215,5.24,155.16,155.1,3.224]
[1729094860422,3.2236,155.13,155.08,16.7732]
[1729094860619,5.24,155.16,155.11,3.2239]
[1729094860829,3.2235,155.14,155.11,3.2239]
[1729094861923,3.2235,155.14,155.08,19.98674705]
[1729094862130,3.2235,155.14,155.12,3.2237]
[1729094862326,1.3179,155.23,155.12,15.43]
[1729094862519,5.24,155.24,155.17,15.43]
[1729094862724,5.24,155.23,155.17,15.43]
[1729094862924,3.2218,155.22,155.19,3.2221]
[1729094863122,3.2218,155.22,155.19,15.43]
[1729094863422,5.24,155.24,155.21,3.2218]
[1729094863636,5.24,155.24,155.21,6.44953024]
[1729094863822,5.24,155.24,155.19,15.43]
[1729094864426,3.2216,155.23,155.2,3.222]
[1729094864631,3.2216,155.23,155.2,6.50626628]
[1729094864827,3.2216,155.23,155.2,3.222]
[1729094865433,3.2216,155.23,155.2,6.43603182]
[1729094865839,3.2217,155.22,155.2,6.43603182]
[1729094867427,5.24,155.25,155.2,3.21403182]
[1729094867630,3.2214,155.24,155.2,15.43]
[1729094867830,3.19502341,155.35,155.23,15.43]
[1729094868037,3.2212,155.25,155.22,3.2216]
[1729094868721,3.2212,155.25,155.22,6.50586628]
[1729094869837,3.2215,155.23,155.22,3.28426628]
[1729094870028,5.24,155.28,155.19,8.4622]
[1729094870224,20.67,155.28,155.19,8.4622]
[1729094870744,3.2218,155.22,155.19,3.2222]
[1729094871231,2.8237,155.27,155.18,16.845]
[1729094872335,3.2216,155.23,155.2,3.222]
[1729094872520,2.8237,155.27,155.2,18.71845457]
[1729094872721,5.24,155.28,155.2,15.43]
[1729094872920,3.2211,155.25,155.22,3.2215]
[1729094873125,3.2211,155.25,155.22,6.44906323]
[1729094873336,3.2211,155.25,155.22,3.2215]
[1729094873638,3.2211,155.25,155.22,6.46033941]
[1729094873829,3.2211,155.25,155.22,3.2215]
[1729094874429,3.2211,155.25,155.22,6.41502609]
[1729094874826,5.24,155.28,155.22,3.19352609]
[1729094875126,5.24,155.28,155.18,16.845]
[1729094875127,15.43,155.27,155.18,16.845]
[1729094875327,3.2222,155.2,155.18,1.415]
[1729094875631,5.24,155.24,155.18,1.415]
[1729094875933,3.222,155.21,155.18,4.6375]
[1729094877237,5.24,155.24,155.18,1.415]
[1729094877426,3.2222,155.2,155.18,1.415]
[1729094877626,5.24,155.24,155.18,1.415]
[1729094877836,3.2227,155.18,155.16,15.43]
[1729094879239,7.9516,155.24,155.16,15.43]
[1729094879240,3.2222,155.2,155.16,15.43]
[1729094879738,7.9516,155.24,155.16,15.43]
[1729094879930,7.9516,155.24,155.14,15.43]
[1729094880633,6.5734,155.24,155.16,15.43]
[1729094880823,5.24,155.24,155.16,15.43]
[1729094881240,5.24,155.24,155.18,3.2224]
[1729094881934,3.222,155.21,155.18,3.2224]
[1729094882339,15.43,155.23,155.14,15.43]
[1729094882543,3.2233,155.15,155.13,1.3362]
[1729094882837,5.26,155.2,155.13,1.3362]
[1729094884240,3.2233,155.14,155.13,1.3362]
[1729094884644,5.26,155.16,155.12,3.26254099]
[1729094884840,5.26,155.16,155.08,15.43]
[1729094885137,5.26,155.16,155.09,3.2242]
[1729094885735,5.26,155.16,155.08,18.58338594]
[1729094886039,5.26,155.16,155.08,21.80788594]
[1729094886430,5.26,155.16,155.09,3.2242]
[1729094886941,3.2236,155.13,155.1,3.224]
[1729094887134,5.26,155.16,155.1,15.43]
[1729094888141,3.2235,155.14,155.11,3.2238]
[1729094889339,3.2229,155.17,155.1,15.43]
[1729094889541,5.26,155.17,155.13,3.2233]
[1729094889736,5.26,155.17,155.12,15.43]
[1729094889943,3.2233,155.14,155.12,18.71821636]
[1729094890547,5.26,155.17,155.12,3.28821636]
[1729094890738,3.2235,155.14,155.11,3.2239]
[1729094891842,3.2235,155.14,155.12,3.2237]
[1729094892145,5.26,155.18,155.13,15.43]
[1729094892440,5.26,155.2,155.14,1.4291]
[1729094892639,3.2231,155.15,155.14,1.4291]
[1729094893842,3.2238,155.12,155.1,3.30143241]
[1729094894034,3.2238,155.12,155.09,3.2242]
[1729094894241,5.26,155.16,155.09,3.2242]
[1729094894647,5.26,155.16,155.09,3.21053181]
[1729094894850,3.2242,155.1,155.08,18.6545]
[1729094895239,5.26,155.16,155.08,18.71821636]
[1729094895441,3.2239,155.12,155.09,3.2242]
[1729094895736,5.26,155.16,155.08,18.71821636]
[1729094895941,3.2235,155.14,155.11,3.2239]
[1729094896141,5.26,155.16,155.1,15.43]
[1729094896647,3.2237,155.13,155.1,18.6541]
[1729094897846,5.26,155.16,155.1,15.43]
[1729094898147,20.69,155.16,155.08,3.28821636]
[1729094898543,3.2243,155.1,155.09,3.20449809]
[1729094898739,3.2243,155.1,155.07,4.5901]
[1729094898947,8.4839,155.12,155.09,3.2242]
[1729094899348,5.26,155.14,155.08,15.43]
[1729094899541,8.4835,155.14,155.11,3.2239]
[1729094900348,8.4834,155.14,155.11,3.2238]
[1729094900546,5.26,155.14,155.08,15.43]
[1729094901248,1.3964,155.19,155.1,15.43]
[1729094901444,5.26,155.21,155.14,15.43]
[1729094901850,3.2224,155.19,155.16,3.2228]
[1729094902052,5.26,155.21,155.16,3.16202872]
[1729094902351,5.26,155.22,155.16,15.43]
[1729094902552,5.26,155.22,155.17,1.3506]
[1729094903053,15.43,155.25,155.17,1.3506]
[1729094903254,5.26,155.24,155.17,1.3506]
[1729094903454,3.2218,155.22,155.18,3.2224]
[1729094903651,5.26,155.24,155.17,1.3506]
[1729094904153,3.2218,155.22,155.18,3.2224]
[1729094904353,5.26,155.24,155.18,3.2224]
[1729094905453,3.2219,155.21,155.18,3.2224]
[1729094905755,3.2219,155.21,155.17,4.5732]
[1729094906149,3.2219,155.21,155.17,1.3506]
[1729094906355,3.2223,155.19,155.17,1.3506]
[1729094906758,3.2217,155.22,155.17,1.3506]
[1729094906942,5.26,155.24,155.17,4.5733]
[1729094907249,5.26,155.24,155.17,1.3506]
[1729094907456,5.26,155.24,155.18,3.2224]
[1729094907659,5.26,155.24,155.17,1.3506]
[1729094908157,5.26,155.24,155.17,4.5731]
[1729094908452,5.26,155.24,155.17,1.3506]
[1729094909246,5.26,155.24,155.18,3.2224]
[1729094909641,3.2219,155.21,155.18,3.2224]
[1729094910053,5.26,155.24,155.17,1.3506]
[1729094910751,3.2225,155.18,155.17,1.3506]
[1729094911446,3.2225,155.18,155.16,3.29422325]
[1729094911757,3.2225,155.18,155.15,3.2231]
[1729094912058,5.32,155.2,155.14,18.3026]
[1729094912652,3.2227,155.18,155.15,3.223]
[1729094912853,5.32,155.2,155.15,3.17691627]
[1729094913047,5.32,155.2,155.09,1.317]
[1729094913048,5.32,155.2,155.12,20.75]
[1729094913253,3.2233,155.15,155.12,3.2237]
[1729094913659,8.0897,155.2,155.1,15.43]
[1729094914162,8.0897,155.2,155.11,3.2237]
[1729094914361,15.43,155.19,155.11,3.2237]
[1729094915062,15.43,155.19,155.1,15.43]
[1729094915658,3.223,155.16,155.12,3.2237]
[1729094916754,3.2226,155.18,155.14,3.2232]
[1729094916959,3.2226,155.18,155.12,15.43]
[1729094917266,3.2227,155.17,155.14,3.2232]
[1729094918375,5.32,155.2,155.12,15.43]
[1729094918666,72.81000254,155.27,155.18,15.43]
[1729094918667,5.32,155.27,155.18,15.43]
[1729094918864,5.32,155.27,155.18,18.72039443]
[1729094919262,5.32,155.27,155.19,1.3876]
[1729094919765,15.43,155.3,155.2,16.7511]
[1729094919960,1.3841,155.32,155.24,15.43]
[1729094920269,5.32,155.33,155.26,15.43]
[1729094920461,5.32,155.33,155.28,15.43]
[1729094920769,3.26751762,155.41,155.31,15.43]
[1729094920967,5.32,155.45,155.36,15.43]
[1729094921180,5.32,155.44,155.36,15.43]
[1729094921366,5.32,155.44,155.37,3.2186]
[1729094921678,5.32,155.44,155.36,18.67979614]
[1729094921870,5.32,155.44,155.39,18.6481]
[1729094922063,5.32,155.44,155.39,15.43]
[1729094922376,5.32,155.46,155.41,15.43]
[1729094922574,5.32,155.46,155.42,3.24667533]
[1729094922765,1.4343,155.48,155.42,3.24667533]
[1729094922968,3.2165,155.47,155.42,6.46407533]
[1729094923162,1.4343,155.48,155.42,6.46407533]
[1729094923766,5.32,155.49,155.42,6.46407533]
[1729094924474,3.2164,155.48,155.42,6.46407533]
[1729094925169,5.32,155.49,155.42,3.24667533]
[1729094925382,3.2167,155.46,155.4,33.2378]
[1729094926582,3.2165,155.47,155.42,3.2174]
[1729094926776,3.2165,155.47,155.42,6.44800352]
[1729094927677,3.2165,155.48,155.42,6.44800352]
[1729094927883,5.32,155.5,155.42,6.44800352]
[1729094928084,5.32,155.5,155.43,3.2173]
[1729094928287,118.65064215,155.94,155.45,24.7]
[1729094928288,5.32,155.54,155.45,24.7]
[1729094928494,5.32,155.55,155.45,27.97576817]
[1729094928779,5.32,155.62,155.51,24.7]
[1729094928987,5.32,155.62,155.53,24.7]
[1729094929285,5.32,155.62,155.56,24.7]
[1729094929483,8.0383,155.65,155.56,24.7]
[1729094929877,2.7183,155.65,155.56,24.7]
[1729094930079,3.2135,155.62,155.57,3.2142]
[1729094930385,8.0383,155.65,155.56,24.7]
[1729094930581,3.2133,155.63,155.57,3.2142]
[1729094930885,245.37357314,155.68,155.58,24.7]
[1729094931077,3.2127,155.66,155.61,3.2135]
[1729094931384,3.2127,155.66,155.59,5.32]
[1729094931580,3.213,155.64,155.58,27.914]